[Event "Gibraltar Junior Intl U16 2019"]
[Site "Caleta"]
[Date "2019.08.16"]
[Round "1.7"]
[White "Revaliente Montoya, Ciro"]
[Black "Seleznev, Egor"]
[Result "1-0"]
[ECO "C45"]
[WhiteElo "2006"]
[BlackElo "1590"]
[Annotator "NA"]
[PlyCount "87"]
[EventDate "2019.08.16"]
[EventType "swiss"]
[EventCountry "GGB"]
[SourceTitle "playchess.com"]
[Source "ChessBase"]
[SourceQuality "1"]
[TimeControl "6600+10"]

1. e4 {[%emt 0:00:00]} e5 {[%emt 0:00:05]} 2. Nf3 {[%emt 0:00:00]} Nc6 {[%emt 0:00:26]} 3. d4 {[%emt 0:00:03]} exd4 {[%emt 0:00:38]} 4. Nxd4 {[%emt 0:00:01]} Nf6 {[%emt 0:00:40]} 5. Nxc6 {[%emt 0:00:10]} bxc6 {[%emt 0:00:39]} 6. Qe2 {[%emt 0:00:05] C45: Scotch Game} (6. e5 Qe7 7. Qe2 Nd5 8. c4 Nb6 9. Nc3 a5 10. Bd2 g6 11. Ne4 Bg7 12. Nf6+ Kd8 13. O-O-O Ba6 14. Qg4 Kc8 15. Bxa5 h5 16. Qg3 h4 17. Qg4 Qxe5 {½-½ (38) Radjabov,T (2756)-Topalov,V (2740) Shamkir 2019}) 6... Qe7 {[%emt 0:01:21]} 7. Nc3 {[%emt 0:00:28]} g6 {[%emt 0:02:02]} 8. Bg5 {[%emt 0:01:52]} d6 {[%emt 0:03:01]} 9. e5 {[%emt 0:02:19]} dxe5 {[%emt 0:02:12]} 10. Qf3 {[%emt 0:00:21]} Bg7 $146 {[%emt 0:13:49]} ({Predecessor:} 10... Qe6) 11. Qxc6+ {[%emt 0:01:31]} Qd7 {[%emt 0:01:21]} 12. Qxa8 {[%emt 0:01:15]} O-O {[%emt 0:01:10]} 13. Bxf6 {[%emt 0:00:27]} Bxf6 {[%emt 0:00:31]} 14. Qd5 {[%emt 0:00:12]} Qe7 {[%emt 0:01:07]} 15. O-O-O {[%emt 0:00:10]} Be6 {[%emt 0:01:45]} 16. Qb5 {[%emt 0:00:58]} c6 {[%emt 0:04:47]} 17. Qxc6 {[%emt 0:01:30]} Rc8 {[%emt 0:01:39]} 18. Qd6 {[%emt 0:00:30]} Bg5+ {[%emt 0:03:22]} 19. Kb1 {[%emt 0:00:18]} Qf6 {[%emt 0:02:19]} 20. Ba6 {[%emt 0:00:31]} Rd8 {[%emt 0:04:50]} 21. Qxd8+ {[%emt 0:00:48]} Qxd8 {[%emt 0:00:06]} 22. Rxd8+ {[%emt 0:00:04]} Bxd8 {[%emt 0:00:13]} 23. Rd1 {[%emt 0:00:07]} Bb6 {[%emt 0:00:56]} 24. f3 {[%emt 0:00:15]} h5 {[%emt 0:01:18]} 25. Ne4 {[%emt 0:00:45]} Kg7 {[%emt 0:01:07]} 26. c4 {[%emt 0:00:48]} Bf5 {[%emt 0:00:23]} 27. Rd5 {[%emt 0:00:24]} f6 {[%emt 0:01:46]} 28. c5 {[%emt 0:00:16]} Bc7 {[%emt 0:00:38]} 29. Kc1 {[%emt 0:00:07]} Be6 {[%emt 0:00:39]} 30. Rd3 {[%emt 0:01:05]} f5 {[%emt 0:01:48]} 31. Ng5 {[%emt 0:00:21]} Kf6 {[%emt 0:00:24]} 32. Nxe6 {[%emt 0:00:11]} Kxe6 {[%emt 0:00:13]} 33. Bc8+ {[%emt 0:00:02]} Kf6 {[%emt 0:00:51]} 34. Rd7 {[%emt 0:00:08]} Ba5 {[%emt 0:00:35]} 35. Rxa7 {[%emt 0:00:09]} Bd8 {[%emt 0:01:46]} 36. c6 {[%emt 0:00:09]} g5 {[%emt 0:00:44]} 37. c7 {[%emt 0:00:05]} Bxc7 {[%emt 0:01:36]} 38. Rxc7 {[%emt 0:00:02]} g4 {[%emt 0:00:13]} 39. a4 {[%emt 0:00:25]} Kg5 {[%emt 0:00:49]} 40. a5 {[%emt 0:00:18]} Kf4 {[%emt 0:00:29]} 41. Rf7 {[%emt 0:00:06]} gxf3 {[%emt 0:00:26]} 42. Rxf5+ {[%emt 0:00:05]} Ke3 {[%emt 0:00:15]} 43. Rxf3+ {[%emt 0:00:02]} Ke2 {[%emt 0:00:36]} 44. Ba6+ {[%emt 0:00:07]} 1-0

[Event "Gibraltar Junior Intl U16 2019"]
[Site "Caleta"]
[Date "2019.08.16"]
[Round "1.8"]
[White "Dharmasena, Gavith"]
[Black "Martinez Soriano, Javier"]
[Result "0-1"]
[ECO "A08"]
[WhiteElo "1585"]
[BlackElo "1992"]
[Annotator "NA"]
[PlyCount "84"]
[EventDate "2019.08.16"]
[EventType "swiss"]
[EventCountry "GGB"]
[SourceTitle "playchess.com"]
[Source "ChessBase"]
[SourceQuality "1"]
[TimeControl "6600+10"]

1. e4 {[%emt 0:00:00]} e6 {[%emt 0:00:00]} 2. d3 {[%emt 0:00:03]} c5 {[%emt 0:00:02]} 3. Nd2 {[%emt 0:00:05]} Nc6 {[%emt 0:00:20]} 4. Ngf3 {[%emt 0:00:09]} g6 {[%emt 0:01:03]} 5. g3 {[%emt 0:01:14]} Bg7 {[%emt 0:00:07]} 6. Bg2 {[%emt 0:00:14]} Nf6 {[%emt 0:00:35]} 7. O-O {[%emt 0:00:34]} O-O {[%emt 0:00:42]} 8. Re1 {[%emt 0:00:45]} d5 {[%emt 0:00:33]} 9. c3 {[%emt 0:01:51]} a5 {[%emt 0:00:18]} 10. e5 {[%emt 0:01:01] A08: King's Indian Attack} (10. a4 b6 11. Nb1 Ba6 12. e5 Nd7 13. Bf4 f6 14. exf6 Qxf6 15. Qd2 e5 16. Bg5 Qxf3 17. Bxf3 Rxf3 {1-0 (34) Amin,B (2661)-Grandelius,N (2641) Baku 2016}) 10... Ng4 {[%emt 0:00:11]} 11. d4 {[%emt 0:00:30]} cxd4 {[%emt 0:00:17]} 12. cxd4 {[%emt 0:00:06]} f6 {[%emt 0:00:25]} 13. h3 {[%emt 0:01:44]} Nxf2 {[%emt 0:00:09]} 14. Kxf2 {[%emt 0:01:10]} fxe5 {[%emt 0:00:04]} 15. Kg1 {[%emt 0:00:53]} e4 {[%emt 0:00:46]} 16. Nxe4 {[%emt 0:02:13]} dxe4 {[%emt 0:00:11]} 17. Rxe4 {[%emt 0:00:05]} a4 $146 {[%emt 0:06:18]} ({Predecessor:} 17... Rf5) 18. Bf4 {[%emt 0:08:23]} Qb6 {[%emt 0:04:19]} 19. Qd2 {[%emt 0:02:10]} Rd8 {[%emt 0:02:47]} 20. Rd1 {[%emt 0:01:51]} Ra5 {[%emt 0:01:28]} 21. Bg5 {[%emt 0:04:49]} Rd6 {[%emt 0:07:18]} 22. Qc2 {[%emt 0:02:18]} e5 {[%emt 0:01:16]} 23. Kh2 {[%emt 0:00:51]} Bf5 {[%emt 0:00:48]} 24. Qc4+ {[%emt 0:00:41]} Be6 {[%emt 0:01:30]} 25. Qe2 {[%emt 0:01:09]} Qb5 {[%emt 0:05:00]} 26. Rd2 {[%emt 0:08:02]} Bf5 {[%emt 0:01:52]} ({Much worse is} 26... Nxd4 $6 27. Nxd4 exd4 28. Bf4 $16) 27. Re3 {[%emt 0:01:15]} Qxe2 {[%emt 0:02:37]} 28. Rdxe2 {[%emt 0:00:07]} e4 {[%emt 0:00:14]} 29. Ne1 {[%emt 0:03:44]} Bxd4 {[%emt 0:01:06]} 30. Ra3 {[%emt 0:00:59]} b5 {[%emt 0:01:38]} 31. Bf4 {[%emt 0:00:58] [#]} Rf6 $1 {[%emt 0:01:36]} 32. Bxe4 {[%emt 0:00:46]} b4 {[%emt 0:00:30]} 33. Rf3 {[%emt 0:00:03]} Bxe4 {[%emt 0:01:37]} 34. Rxe4 {[%emt 0:00:07]} Bxb2 {[%emt 0:01:01]} 35. Bh6 $2 {[%emt 0:00:44]} (35. Nd3 Bc3 36. Nf2) 35... Rxf3 {[%emt 0:03:39]} 36. Re8+ {[%emt 0:00:19]} Kf7 {[%emt 0:00:10]} 37. Rf8+ {[%emt 0:00:03]} Ke7 {[%emt 0:00:21]} 38. Rxf3 {[%emt 0:00:03]} Rf5 {[%emt 0:03:10]} 39. Rxf5 {[%emt 0:01:06]} gxf5 {[%emt 0:00:15]} 40. Nd3 {[%emt 0:00:05]} a3 {[%emt 0:00:36]} 41. Kg2 {[%emt 0:00:47]} b3 {[%emt 0:00:14]} 42. Bg5+ $19 {[%emt 0:01:44]} Bf6 {[%emt 0:00:41]} 0-1

[Event "Gibraltar Junior Intl U16 2019"]
[Site "Caleta"]
[Date "2019.08.16"]
[Round "1.9"]
[White "Akeya-Price, Robert"]
[Black "Miller, Max C"]
[Result "1/2-1/2"]
[ECO "D01"]
[WhiteElo "1988"]
[BlackElo "1563"]
[Annotator "NA"]
[PlyCount "57"]
[EventDate "2019.08.16"]
[EventType "swiss"]
[EventCountry "GGB"]
[SourceTitle "playchess.com"]
[Source "ChessBase"]
[SourceQuality "1"]
[TimeControl "6600+10"]

1. d4 {[%emt 0:00:00]} Nf6 {[%emt 0:00:00]} 2. Nc3 {[%emt 0:00:00]} d5 {[%emt 0:00:10]} 3. Bg5 {[%emt 0:00:47]} e6 {[%emt 0:00:30]} 4. e3 {[%emt 0:00:42]} Be7 {[%emt 0:01:42]} 5. Bd3 {[%emt 0:01:53]} Nbd7 {[%emt 0:00:24]} 6. f4 {[%emt 0:05:55] D01: Veresov Opening} (6. Nf3 O-O 7. O-O b6 8. h3 Bb7 9. Bf4 c5 10. Re1 a6 11. a3 b5 12. Bf1 Qb6 13. Ne5 Nxe5 14. Bxe5 Nd7 15. Bg3 Bf6 16. Ne2 g6 17. c3 Rad8 18. b4 {½-½ (18) Pavlov,M (2491)-Enkhnar,E (2438) Alushta 2016}) 6... c5 {[%emt 0:00:48]} 7. Nf3 {[%emt 0:01:05]} b6 {[%emt 0:04:07]} 8. O-O $146 {[%emt 0:01:17]} ({Predecessor:} 8. Ne5 Nxe5 9. fxe5 Nd7 10. Bf4 a6 11. Qf3 c4 {1-0 (39) Reichenbach,W (2255)-Meister,B Berlin 1994}) 8... h6 {[%emt 0:03:20]} 9. Bxf6 {[%emt 0:04:20]} Bxf6 {[%emt 0:02:12]} 10. Nb5 {[%emt 0:03:18]} Be7 {[%emt 0:01:58]} 11. Ne5 {[%emt 0:04:25]} Nxe5 {[%emt 0:02:37]} 12. fxe5 {[%emt 0:00:17]} c4 {[%emt 0:01:41]} 13. Rxf7 {[%emt 0:08:00]} Kxf7 {[%emt 0:33:14]} 14. Qh5+ {[%emt 0:00:33]} Kg8 {[%emt 0:00:36]} 15. Bg6 {[%emt 0:04:21]} Bd7 {[%emt 0:04:50]} 16. Bf7+ {[%emt 0:02:21]} Kf8 {[%emt 0:00:12]} 17. Rf1 {[%emt 0:01:56]} Bf6 {[%emt 0:00:52]} 18. exf6 {[%emt 0:05:20]} gxf6 {[%emt 0:04:14] [#]} 19. Qg6 $1 {[%emt 0:05:57]} f5 {[%emt 0:07:12]} 20. Bxe6 {[%emt 0:01:25]} Bxe6 {[%emt 0:01:14]} 21. Qxe6 {[%emt 0:00:07]} Qe8 {[%emt 0:03:56]} 22. Qxf5+ {[%emt 0:03:15]} Kg7 {[%emt 0:00:48]} 23. Qf6+ {[%emt 0:01:25]} Kh7 {[%emt 0:03:52]} 24. Qf5+ {[%emt 0:07:46]} Kg7 {[%emt 0:00:12]} 25. Rf3 {[%emt 0:08:30]} Rf8 $18 {[%emt 0:05:34]} 26. Nc7 {[%emt 0:03:01]} Rxf5 {[%emt 0:02:10]} 27. Nxe8+ {[%emt 0:00:13]} Kg6 {[%emt 0:07:41]} 28. Nc7 {[%emt 0:00:06]} Rxf3 29. gxf3 1/2-1/2

[Event "Gibraltar Junior Intl U16 2019"]
[Site "Caleta"]
[Date "2019.08.16"]
[Round "1.10"]
[White "Nayak, Aurideep"]
[Black "Serrano Almendros, Alejandro"]
[Result "0-1"]
[ECO "C11"]
[WhiteElo "1546"]
[BlackElo "1922"]
[Annotator "NA"]
[PlyCount "72"]
[EventDate "2019.08.16"]
[EventType "swiss"]
[EventCountry "GGB"]
[SourceTitle "playchess.com"]
[Source "ChessBase"]
[SourceQuality "1"]
[TimeControl "6600+10"]

1. e4 {[%emt 0:00:00]} e6 {[%emt 0:00:06]} 2. d4 {[%emt 0:00:05]} d5 {[%emt 0:00:16]} 3. Nc3 {[%emt 0:00:26]} Nf6 {[%emt 0:00:41]} 4. e5 {[%emt 0:00:30]} Nfd7 {[%emt 0:00:11]} 5. Bd3 {[%emt 0:02:10]} c5 {[%emt 0:01:42]} 6. Be3 {[%emt 0:01:43] C11: French: Classical System: 4 e5 and 4 Bg5 dxe4} Nc6 {[%emt 0:07:22]} 7. Bb5 {[%emt 0:03:02]} cxd4 {[%emt 0:04:18]} 8. Bxd4 {[%emt 0:05:01]} a6 {[%emt 0:09:22]} 9. Bxc6 {[%emt 0:15:16]} bxc6 {[%emt 0:00:44]} 10. f4 {[%emt 0:00:09]} Rb8 {[%emt 0:05:02]} 11. Qc1 $146 {[%emt 0:17:12]} ({Predecessor:} 11. Rb1 c5 12. Bf2 Bb7 13. Nf3 {0-1 (45) Serjmyadag,D (2015)-Ho,V (2286) Taipa 2014}) 11... Qa5 {[%emt 0:02:14]} 12. a3 {[%emt 0:02:43]} c5 {[%emt 0:15:58]} 13. b4 {[%emt 0:05:16]} Qc7 {[%emt 0:01:07]} 14. bxc5 {[%emt 0:01:20]} Bxc5 {[%emt 0:01:45]} 15. Bxc5 {[%emt 0:00:45]} Qxc5 {[%emt 0:00:58]} 16. Nge2 {[%emt 0:01:04]} O-O {[%emt 0:01:42]} 17. Qd2 {[%emt 0:00:10]} Bb7 {[%emt 0:04:07]} 18. Qd4 {[%emt 0:01:52]} Rfc8 {[%emt 0:00:50]} 19. Qxc5 {[%emt 0:03:41]} Rxc5 {[%emt 0:00:23]} 20. Kd2 {[%emt 0:01:12]} Rbc8 {[%emt 0:04:00]} 21. Rhb1 {[%emt 0:02:21]} Ba8 {[%emt 0:03:13]} 22. Rb3 $15 {[%emt 0:03:19]} Rc4 {[%emt 0:19:20]} 23. Rb4 {[%emt 0:12:19]} R4c7 {[%emt 0:00:15]} 24. g3 {[%emt 0:03:30]} a5 {[%emt 0:01:04]} 25. Rd4 {[%emt 0:01:53]} f6 {[%emt 0:00:59]} 26. exf6 {[%emt 0:02:10]} gxf6 {[%emt 0:00:16]} 27. Rc1 {[%emt 0:01:09]} Nb6 {[%emt 0:02:34]} 28. Na4 {[%emt 0:01:43]} Nc4+ {[%emt 0:01:12]} 29. Kd3 {[%emt 0:01:17]} Bb7 {[%emt 0:05:06]} 30. Nec3 {[%emt 0:02:30]} Ba6 {[%emt 0:00:51]} 31. Re1 {[%emt 0:01:44]} Kf7 {[%emt 0:06:19]} 32. Ke2 {[%emt 0:03:28]} Nxa3+ {[%emt 0:01:06]} 33. Kd2 {[%emt 0:00:43]} Nb5 {[%emt 0:00:43]} 34. Nxb5 {[%emt 0:00:57]} Rxc2+ {[%emt 0:00:17]} 35. Ke3 {[%emt 0:00:25]} Bxb5 {[%emt 0:00:16]} 36. Nb6 {[%emt 0:00:17]} R8c3+ {[%emt 0:00:05]} 0-1

[Event "Gibraltar Junior Intl U16 2019"]
[Site "Caleta"]
[Date "2019.08.16"]
[Round "1.11"]
[White "Llena Velarde, David"]
[Black "Lv, Jason"]
[Result "1-0"]
[ECO "C54"]
[WhiteElo "1920"]
[BlackElo "1532"]
[Annotator "NA"]
[PlyCount "85"]
[EventDate "2019.08.16"]
[EventType "swiss"]
[EventCountry "GGB"]
[SourceTitle "playchess.com"]
[Source "ChessBase"]
[SourceQuality "1"]
[TimeControl "6600+10"]

1. e4 {[%emt 0:00:00]} e5 {[%emt 0:00:00]} 2. Nf3 {[%emt 0:00:24]} Nc6 {[%emt 0:00:14]} 3. Bc4 {[%emt 0:00:26]} Bc5 {[%emt 0:00:10]} 4. c3 {[%emt 0:02:44]} Nf6 {[%emt 0:00:06]} 5. d3 {[%emt 0:00:46]} h6 {[%emt 0:00:34]} 6. O-O {[%emt 0:02:26]} d6 {[%emt 0:02:18]} 7. b4 {[%emt 0:00:30] C54: Giuoco Piano: 4 c3 Nf6, main lines with 5 d4 and 5 d3} (7. Nbd2 O-O 8. Re1 a6 9. a4 Ba7 10. h3 Re8 11. b4 Be6 12. Bxe6 Rxe6 13. Qc2 Ne7 14. Nf1 Qd7 15. Ng3 {1-0 (56) Wang,H (2726)-Malakhov,V (2667) China 2019}) 7... Bb6 {[%emt 0:00:47]} 8. Bb3 {[%emt 0:01:29]} a5 {[%emt 0:02:08]} 9. b5 {[%emt 0:01:06]} Ne7 {[%emt 0:00:29]} 10. Nbd2 {[%emt 0:03:32]} O-O {[%emt 0:03:39]} 11. Nc4 {[%emt 0:00:53]} c6 $146 {[%emt 0:04:26]} ({Predecessor:} 11... Ba7 12. a4 Ng6 13. Re1 Re8 14. h3 Be6 {½-½ (34) Lanz Calavia,J (2144)-Bittner,A (2318) ICCF email 2016}) 12. Nxb6 {[%emt 0:05:28]} Qxb6 {[%emt 0:00:19]} 13. Be3 {[%emt 0:00:33]} Qd8 {[%emt 0:02:40]} 14. bxc6 {[%emt 0:01:05]} bxc6 {[%emt 0:01:23]} 15. h3 {[%emt 0:05:42]} Ba6 {[%emt 0:02:39]} 16. Re1 {[%emt 0:06:58]} Ng6 {[%emt 0:01:55]} 17. Ba4 {[%emt 0:18:59]} Qc7 {[%emt 0:01:57]} 18. Qc2 {[%emt 0:01:00]} d5 {[%emt 0:06:13]} 19. Bc5 {[%emt 0:07:49]} Rfc8 {[%emt 0:04:40]} 20. g3 {[%emt 0:00:56]} dxe4 {[%emt 0:08:30]} 21. dxe4 {[%emt 0:00:11]} Qd7 {[%emt 0:01:17]} 22. Kh2 {[%emt 0:04:57]} Qc7 {[%emt 0:10:10]} ({Better is} 22... Bd3 $17 23. Qd2 Bxe4 24. Rxe4 Qd5 {[%mdl 64] Double Attack}) 23. Rab1 {[%emt 0:14:16]} Rab8 {[%emt 0:02:28]} 24. Rxb8 {[%emt 0:00:41]} Rxb8 {[%emt 0:00:50]} 25. Rd1 {[%emt 0:00:16]} Re8 {[%emt 0:04:19]} 26. Bd6 {[%emt 0:02:01]} Qc8 {[%emt 0:01:32]} 27. c4 {[%emt 0:01:05]} Rd8 {[%emt 0:10:47]} 28. c5 $16 {[%emt 0:02:47]} Bb5 {[%emt 0:05:12]} 29. Re1 {[%emt 0:05:24]} Re8 {[%emt 0:01:31]} 30. Nd2 {[%emt 0:03:50]} Qa6 {[%emt 0:02:20]} 31. Re3 {[%emt 0:01:36]} Rd8 {[%emt 0:02:40]} 32. Bxb5 {[%emt 0:00:47]} cxb5 {[%emt 0:00:30]} 33. a4 {[%emt 0:01:02]} Ne8 {[%emt 0:03:32]} 34. axb5 {[%emt 0:00:06]} Qxb5 {[%emt 0:00:13]} 35. Nc4 {[%emt 0:00:48]} Nxd6 {[%emt 0:00:34]} 36. Nxd6 {[%emt 0:00:13]} Qc6 {[%emt 0:00:56]} 37. Rd3 {[%emt 0:01:35]} Nf8 {[%emt 0:01:51]} 38. Rd5 {[%emt 0:00:25]} Ne6 {[%emt 0:01:16]} 39. Nf5 {[%emt 0:01:58]} Kf8 {[%emt 0:01:51]} 40. Qd2 {[%emt 0:01:35]} Rxd5 {[%emt 0:01:46]} 41. exd5 {[%emt 0:00:08]} Qd7 {[%emt 0:00:12]} 42. c6 {[%emt 0:00:14]} Qd8 {[%emt 0:00:43]} 43. d6 {[%emt 0:00:47]} 1-0

[Event "Gibraltar Junior Intl U16 2019"]
[Site "Caleta"]
[Date "2019.08.16"]
[Round "1.12"]
[White "Mendis, Vidura"]
[Black "Tombolis, Christopher"]
[Result "1/2-1/2"]
[ECO "B23"]
[WhiteElo "1528"]
[BlackElo "1874"]
[Annotator "NA"]
[PlyCount "92"]
[EventDate "2019.08.16"]
[EventType "swiss"]
[EventCountry "GGB"]
[SourceTitle "playchess.com"]
[Source "ChessBase"]
[SourceQuality "1"]
[TimeControl "6600+10"]

1. e4 {[%emt 0:00:00]} c5 {[%emt 0:00:00]} 2. Nc3 {[%emt 0:00:07]} Nc6 {[%emt 0:00:03]} 3. f4 {[%emt 0:00:14]} g6 {[%emt 0:00:13]} 4. Nf3 {[%emt 0:00:16]} Bg7 {[%emt 0:00:09]} 5. Bb5 {[%emt 0:00:15]} Nd4 {[%emt 0:00:08]} 6. O-O {[%emt 0:00:11]} a6 {[%emt 0:03:28]} 7. Be2 {[%emt 0:03:49] B23: Closed Sicilian: Lines without g3} (7. Bd3 Nc6 8. e5 d6 9. Qe2 dxe5 10. fxe5 Nh6 11. Kh1 Bg4 12. Be4 Rc8 13. d3 Nf5 14. e6 f6 15. Qf2 {1-0 (37) Petrosian,T (2648)-Jaracz,P (2548) Warsaw 2012}) 7... e6 {[%emt 0:00:34]} 8. e5 {[%emt 0:00:45]} d5 {[%emt 0:05:08]} 9. d3 {[%emt 0:04:22]} Ne7 {[%emt 0:06:10]} 10. Bd2 $146 {[%emt 0:01:45]} ({Predecessor:} 10. Nxd4 cxd4 11. Nb1 O-O 12. Bf3 Bd7 13. Nd2 Rc8 14. Nb3 Nc6 {0-1 (35) Shao,S (1673)-Santeramo,A (1983) Al Ain 2013}) 10... Ndc6 {[%emt 0:25:50]} 11. Qe1 {[%emt 0:01:33]} O-O {[%emt 0:06:42]} 12. Qf2 {[%emt 0:04:22]} b6 {[%emt 0:00:33]} 13. a3 {[%emt 0:04:13]} f6 {[%emt 0:00:48]} 14. exf6 $1 {[%emt 0:03:26]} Bxf6 {[%emt 0:00:26]} 15. Rae1 {[%emt 0:00:27]} Nf5 {[%emt 0:01:40]} 16. Rd1 {[%emt 0:02:23]} Ncd4 {[%emt 0:01:37]} 17. Rc1 {[%emt 0:01:19]} Bb7 {[%emt 0:03:57]} 18. Kh1 {[%emt 0:18:06]} Qd7 {[%emt 0:03:28]} 19. b3 {[%emt 0:05:32]} b5 {[%emt 0:06:43]} 20. Nd1 {[%emt 0:05:21]} Rae8 {[%emt 0:12:33]} 21. Ne3 {[%emt 0:07:00]} Nxf3 {[%emt 0:06:27]} 22. Bxf3 {[%emt 0:01:02]} Nd4 {[%emt 0:01:02]} 23. Ng4 {[%emt 0:01:02]} Bg7 {[%emt 0:01:21]} 24. Bd1 $19 {[%emt 0:12:09]} ({White should try} 24. Qh4 $15) 24... h5 {[%emt 0:01:34]} 25. Ne3 {[%emt 0:01:31]} e5 {[%emt 0:00:52]} 26. Qg3 {[%emt 0:00:48]} exf4 {[%emt 0:00:51]} 27. Rxf4 {[%emt 0:00:12]} Rxf4 {[%emt 0:00:58]} 28. Qxf4 {[%emt 0:00:09]} Rf8 {[%emt 0:00:27]} 29. Qg5 {[%emt 0:01:08]} Qc6 {[%emt 0:01:29]} 30. c3 {[%emt 0:00:26]} Nf5 {[%emt 0:05:40]} 31. Bf3 {[%emt 0:01:52]} Nxe3 {[%emt 0:00:58]} 32. Bxe3 {[%emt 0:00:28]} Rxf3 {[%emt 0:01:17]} 33. gxf3 {[%emt 0:00:21]} d4 {[%emt 0:00:01]} 34. cxd4 {[%emt 0:03:48]} Qxf3+ {[%emt 0:00:07]} 35. Kg1 {[%emt 0:00:06]} Qh1+ {[%emt 0:00:41]} 36. Kf2 {[%emt 0:00:04]} Qxh2+ {[%emt 0:00:13]} 37. Kf1 {[%emt 0:03:08]} Qh3+ {[%emt 0:04:46]} 38. Kf2 {[%emt 0:02:58]} Qf3+ {[%emt 0:01:12]} 39. Ke1 {[%emt 0:01:59]} cxd4 {[%emt 0:00:18]} 40. Bxd4 {[%emt 0:01:06]} Qxd3 {[%emt 0:02:35]} 41. Bxg7 {[%emt 0:01:18]} Kxg7 {[%emt 0:02:09]} 42. Qe7+ {[%emt 0:04:30]} Kh6 {[%emt 0:00:43]} 43. Qf8+ {[%emt 0:00:51]} Kg5 {[%emt 0:00:01]} 44. Qe7+ Kh6 45. Qf8+ {[%emt 0:00:04]} Kg5 {[%emt 0:00:02]} 46. Rc5+ {[%emt 0:00:03]} Kg4 {[%emt 0:00:07]} 1/2-1/2

[Event "Gibraltar Junior Intl U16 2019"]
[Site "Caleta"]
[Date "2019.08.16"]
[Round "1.13"]
[White "Maldonado Mena, German"]
[Black "Hussain, Adam"]
[Result "0-1"]
[ECO "A40"]
[WhiteElo "1850"]
[BlackElo "1515"]
[Annotator "NA"]
[PlyCount "134"]
[EventDate "2019.08.16"]
[EventType "swiss"]
[EventCountry "GGB"]
[SourceTitle "playchess.com"]
[Source "ChessBase"]
[SourceQuality "1"]
[TimeControl "6600+10"]

1. d4 {[%emt 0:00:00]} e6 {[%emt 0:00:00]} 2. c4 {[%emt 0:00:00]} b6 {[%emt 0:00:03]} 3. Nc3 {[%emt 0:00:07]} Bb7 {[%emt 0:00:04]} 4. e4 {[%emt 0:00:09]} Bb4 {[%emt 0:00:07]} 5. Bd3 {[%emt 0:00:38]} f5 {[%emt 0:00:34]} 6. d5 {[%emt 0:03:28]} fxe4 {[%emt 0:00:39]} 7. Bxe4 {[%emt 0:00:16]} Nf6 {[%emt 0:01:35] A40: Unusual replies to 1 d4} 8. Bf3 {[%emt 0:01:14]} Bxc3+ {[%emt 0:00:54]} 9. bxc3 {[%emt 0:00:08]} e5 {[%emt 0:03:08]} (9... O-O 10. Ne2 e5 11. Ng3 d6 12. O-O Nbd7 13. Be2 Qe8 14. f4 Ba6 15. Qc2 {1-0 (42) Gupta,A (2521)-Bauer,C (2619) Differdange 2008}) 10. d6 $146 {[%emt 0:03:54]} ({Predecessor:} 10. Bh5+ g6 11. Be2 d6 12. Nf3 Nbd7 13. Ng5 Nc5 14. h4 Qe7 15. Be3 {0-1 (38) Fernandez Diaz,C (2259)-Ryan,J (2258) Barcelona 2017}) 10... e4 {[%emt 0:05:17]} 11. Bh5+ {[%emt 0:04:24]} g6 {[%emt 0:01:23]} 12. Be2 {[%emt 0:02:17]} cxd6 {[%emt 0:04:47]} 13. Qxd6 {[%emt 0:01:25]} Qe7 {[%emt 0:00:38]} 14. Qxe7+ {[%emt 0:01:43]} Kxe7 {[%emt 0:00:05]} 15. Ba3+ {[%emt 0:00:06]} d6 {[%emt 0:01:12]} 16. O-O-O {[%emt 0:00:56]} Rd8 {[%emt 0:00:33]} 17. f3 {[%emt 0:00:29]} Na6 {[%emt 0:01:39]} 18. Nh3 {[%emt 0:02:35]} Nc5 {[%emt 0:01:25]} 19. Rhe1 {[%emt 0:01:26]} h6 {[%emt 0:12:23]} 20. Bxc5 {[%emt 0:04:12]} dxc5 {[%emt 0:00:20]} 21. fxe4 {[%emt 0:00:29]} Rxd1+ {[%emt 0:02:00]} 22. Bxd1 {[%emt 0:01:19]} Nd7 {[%emt 0:13:47]} 23. e5 {[%emt 0:03:57]} (23. Nf4 $11) 23... Rf8 {[%emt 0:00:47]} 24. g3 {[%emt 0:00:24]} g5 {[%emt 0:01:10]} 25. Bg4 {[%emt 0:19:47]} Bc6 {[%emt 0:08:50]} 26. Re2 {[%emt 0:02:15]} Bf3 $15 {[%emt 0:02:08]} 27. Bxf3 {[%emt 0:04:54]} Rxf3 {[%emt 0:00:17]} 28. Kc2 {[%emt 0:01:08]} Ke6 {[%emt 0:03:22]} 29. Nf2 {[%emt 0:00:53]} h5 {[%emt 0:02:29]} 30. Ne4 {[%emt 0:08:22]} Rf5 {[%emt 0:01:03]} 31. h3 {[%emt 0:00:39]} g4 {[%emt 0:05:43]} 32. hxg4 {[%emt 0:01:21]} hxg4 {[%emt 0:00:08]} 33. Nf2 {[%emt 0:02:36]} Rxe5 {[%emt 0:05:40]} 34. Rd2 {[%emt 0:00:45]} Nf6 {[%emt 0:00:42]} 35. Kd3 {[%emt 0:05:02]} Kf5 {[%emt 0:01:12]} 36. a4 {[%emt 0:01:22]} a5 {[%emt 0:01:21]} 37. Rd1 {[%emt 0:01:40]} Nh5 {[%emt 0:02:44]} 38. Rh1 {[%emt 0:03:57]} Nxg3 {[%emt 0:01:30]} 39. Rh8 {[%emt 0:00:13]} Kf4 {[%emt 0:02:14]} 40. Rf8+ {[%emt 0:05:11]} Nf5 {[%emt 0:00:41]} 41. Rg8 {[%emt 0:00:28]} g3 {[%emt 0:01:09]} 42. Nh3+ {[%emt 0:01:20]} Kf3 {[%emt 0:00:12]} 43. Ng5+ {[%emt 0:00:59]} Kf2 {[%emt 0:01:32]} 44. Ne4+ {[%emt 0:02:20]} Kg1 {[%emt 0:03:50]} 45. Rxg3+ {[%emt 0:03:27]} Nxg3 {[%emt 0:00:31]} 46. Nxg3 {[%emt 0:00:03]} Kf2 {[%emt 0:00:57]} 47. Ne4+ {[%emt 0:00:44]} Kf3 {[%emt 0:00:23]} 48. Nd6 {[%emt 0:00:44]} Re3+ {[%emt 0:01:13]} 49. Kc2 {[%emt 0:00:14]} Re2+ {[%emt 0:00:59]} 50. Kb3 {[%emt 0:00:15]} Re6 {[%emt 0:01:00]} 51. Nb5 {[%emt 0:00:10]} Ke3 {[%emt 0:00:50]} 52. Nc7 {[%emt 0:01:31]} Rd6 {[%emt 0:00:31]} 53. Nd5+ {[%emt 0:00:04]} Ke4 {[%emt 0:00:09]} 54. Nc7 {[%emt 0:00:21]} Kd3 {[%emt 0:01:15]} 55. Nd5 {[%emt 0:00:16]} Kd2 {[%emt 0:00:31]} 56. Kb2 {[%emt 0:00:33]} Rh6 {[%emt 0:00:27]} 57. Nc7 {[%emt 0:02:29]} Kd3 {[%emt 0:00:25]} 58. Kb3 {[%emt 0:00:31]} Rh1 {[%emt 0:00:21]} 59. Nd5 {[%emt 0:00:37]} Rb1+ {[%emt 0:00:35]} 60. Ka2 {[%emt 0:00:03]} Kxc4 {[%emt 0:01:28]} 61. Ne3+ {[%emt 0:00:42]} Kd3 {[%emt 0:00:06]} 62. Nd5 {[%emt 0:01:48]} Rc1 {[%emt 0:00:38]} 63. Kb2 {[%emt 0:00:07]} Rc2+ {[%emt 0:00:06]} 64. Kb3 {[%emt 0:00:01]} c4+ {[%emt 0:00:34]} 65. Ka3 {[%emt 0:00:02]} Rxc3+ {[%emt 0:00:12]} 66. Nxc3 {[%emt 0:00:48]} Kxc3 {[%emt 0:00:12]} 67. Ka2 {[%emt 0:00:01]} Kd4 {[%emt 0:00:44]} 0-1